fUSD/lending_fUSD_20260502
["ID","MTS","AMOUNT","RATE_DAILY","PERIOD"]
[421465592,1777727441000,-585.88856511,0.00032876,2]
[421465598,1777727441000,-500.0,0.00032876,2]
[421465603,1777727441000,-500.0,0.00032876,2]
[421465599,1777727441000,-651.4,0.00032876,2]
[421465602,1777727441000,-500.0,0.00032876,2]
[421465597,1777727441000,-500.0,0.00032876,2]
[421465604,1777727441000,-500.0,0.00032876,2]
[421465600,1777727441000,-500.0,0.00032876,2]
[421465606,1777727441000,-919.0,0.00032876,2]
[421465607,1777727441000,-500.0,0.00032876,2]
[421465608,1777727441000,-500.0,0.00032876,2]
[421465605,1777727441000,-500.0,0.00032876,2]
[421465601,1777727441000,-500.0,0.00032876,2]
[421465609,1777727441000,-500.0,0.00032876,2]
[421465554,1777727441000,-500.0,0.00032876,2]
[421465580,1777727441000,-500.0,0.00032876,2]
[421465582,1777727441000,-264.62156753,0.00032876,2]
[421465591,1777727441000,-500.0,0.00032876,2]
[421465583,1777727441000,-500.0,0.00032876,2]
[421465555,1777727441000,-500.0,0.00032876,2]
[421465577,1777727441000,-889.96,0.00032876,2]
[421465551,1777727441000,-500.0,0.00032876,2]
[421465557,1777727441000,-500.0,0.00032876,2]
[421465558,1777727441000,-500.0,0.00032876,2]
[421465559,1777727441000,-500.0,0.00032876,2]
[421465567,1777727441000,-500.0,0.00032876,2]
[421465563,1777727441000,-500.0,0.00032876,2]
[421465566,1777727441000,-500.0,0.00032876,2]
[421465571,1777727441000,-500.0,0.00032876,2]
[421465565,1777727441000,-745.92,0.00032876,2]
[421465572,1777727441000,-654.9,0.00032876,2]
[421465568,1777727441000,-500.0,0.00032876,2]
[421465561,1777727441000,-500.0,0.00032876,2]
[421465569,1777727441000,-500.0,0.00032876,2]
[421465574,1777727441000,-500.0,0.00032876,2]
[421465564,1777727441000,-500.0,0.00032876,2]
[421465576,1777727441000,-548.58515477,0.00032876,2]
[421465575,1777727441000,-500.0,0.00032876,2]
[421465581,1777727441000,-537.00156246,0.00032876,2]
[421465573,1777727441000,-500.0,0.00032876,2]
[421465578,1777727441000,-431.37692092,0.00032876,2]
[421465570,1777727441000,-500.0,0.00032876,2]
[421465560,1777727441000,-500.0,0.00032876,2]
[421465562,1777727441000,-500.0,0.00032876,2]
[421465584,1777727441000,-500.0,0.00032876,2]
[421465661,1777727442000,-500.0,0.00032876,2]
[421465659,1777727442000,-500.0,0.00032876,2]
[421465652,1777727442000,-500.0,0.00032876,2]
[421465650,1777727442000,-500.0,0.00032876,2]
[421465651,1777727442000,-500.0,0.00032876,2]
[421465649,1777727442000,-500.0,0.00032876,2]
[421465636,1777727442000,-500.0,0.00032876,2]
[421465641,1777727442000,-500.0,0.00032876,2]
[421465637,1777727442000,-500.0,0.00032876,2]
[421465653,1777727442000,-500.0,0.00032876,2]
[421465643,1777727442000,-500.0,0.00032876,2]
[421465648,1777727442000,-500.0,0.00032876,2]
[421465654,1777727442000,-500.0,0.00032876,2]
[421465671,1777727442000,-500.0,0.00032876,2]
[421465656,1777727442000,-500.0,0.00032876,2]
[421465655,1777727442000,-500.0,0.00032876,2]
[421465658,1777727442000,-500.0,0.00032876,2]
[421465674,1777727442000,-500.0,0.00032876,2]
[421465663,1777727442000,-500.0,0.00032876,2]
[421465673,1777727442000,-539.38,0.00032876,2]
[421465665,1777727442000,-500.0,0.00032876,2]
[421465662,1777727442000,-500.0,0.00032876,2]
[421465669,1777727442000,-1336.06,0.00032876,2]
[421465668,1777727442000,-500.0,0.00032876,2]
[421465640,1777727442000,-711.1,0.00032876,2]
[421465670,1777727442000,-917.21,0.00032876,2]
[421465657,1777727442000,-500.0,0.00032876,2]
[421465638,1777727442000,-500.0,0.00032876,2]
[421465611,1777727442000,-500.0,0.00032876,2]
[421465635,1777727442000,-500.0,0.00032876,2]
[421465667,1777727442000,-500.0,0.00032876,2]
[421465610,1777727442000,-500.0,0.00032876,2]
[421465612,1777727442000,-500.0,0.00032876,2]
[421465613,1777727442000,-531.79,0.00032876,2]
[421465617,1777727442000,-500.0,0.00032876,2]
[421465615,1777727442000,-1206.9,0.00032876,2]
[421465614,1777727442000,-859.95,0.00032876,2]
[421465618,1777727442000,-607.59022603,0.00032876,2]
[421465616,1777727442000,-500.0,0.00032876,2]
[421465619,1777727442000,-500.0,0.00032876,2]
[421465623,1777727442000,-500.0,0.00032876,2]
[421465622,1777727442000,-640.70325464,0.00032876,2]
[421465620,1777727442000,-544.22875381,0.00032876,2]
[421465624,1777727442000,-500.0,0.00032876,2]
[421465625,1777727442000,-425.36662484,0.00032876,2]
[421465626,1777727442000,-500.0,0.00032876,2]
[421465627,1777727442000,-688.65,0.00032876,2]
[421465630,1777727442000,-500.0,0.00032876,2]
[421465629,1777727442000,-500.0,0.00032876,2]
[421465632,1777727442000,-500.0,0.00032876,2]
[421465628,1777727442000,-500.0,0.00032876,2]
[421465621,1777727442000,-500.0,0.00032876,2]
[421465634,1777727442000,-622.15854603,0.00032876,2]
[421465645,1777727442000,-500.0,0.00032876,2]
[421465647,1777727442000,-657.48,0.00032876,2]
[421465646,1777727442000,-500.0,0.00032876,2]
[421465633,1777727442000,-500.0,0.00032876,2]
[421465639,1777727442000,-907.74,0.00032876,2]
[421465672,1777727442000,-500.0,0.00032876,2]
[421465631,1777727442000,-500.0,0.00032876,2]
[421465686,1777727442000,-500.0,0.00032876,2]
[421465705,1777727442000,-500.0,0.00032876,2]
[421465710,1777727442000,-500.0,0.00032876,2]
[421465708,1777727442000,-500.0,0.00032876,2]
[421465712,1777727442000,-500.0,0.00032876,2]
[421465714,1777727442000,-500.0,0.00032876,2]
[421465724,1777727442000,-500.0,0.00032876,2]
[421465713,1777727442000,-500.0,0.00032876,2]
[421465715,1777727442000,-518.35,0.00032876,2]
[421465722,1777727442000,-500.0,0.00032876,2]
[421465726,1777727442000,-500.0,0.00032876,2]
[421465720,1777727442000,-1205.42,0.00032876,2]
[421465718,1777727442000,-805.74,0.00032876,2]
[421465721,1777727442000,-500.0,0.00032876,2]
[421465717,1777727442000,-500.0,0.00032876,2]
[421465719,1777727442000,-969.81,0.00032876,2]
[421465723,1777727442000,-500.0,0.00032876,2]
[421465734,1777727442000,-500.0,0.00032876,2]
[421465732,1777727442000,-500.0,0.00032876,2]
[421465727,1777727442000,-3046.33,0.00032876,2]
[421465730,1777727442000,-500.0,0.00032876,2]
[421465733,1777727442000,-500.0,0.00032876,2]
[421465725,1777727442000,-500.0,0.00032876,2]
[421465729,1777727442000,-500.0,0.00032876,2]
[421465735,1777727442000,-500.0,0.00032876,2]
[421465728,1777727442000,-730.19,0.00032876,2]
[421465731,1777727442000,-180.72425071,0.00032876,2]
[421465675,1777727442000,-500.0,0.00032876,2]
[421465702,1777727442000,-905.77,0.00032876,2]
[421465704,1777727442000,-500.0,0.00032876,2]
[421465716,1777727442000,-500.0,0.00032876,2]
[421465711,1777727442000,-500.0,0.00032876,2]
[421465701,1777727442000,-500.0,0.00032876,2]
[421465676,1777727442000,-799.95,0.00032876,2]
[421465680,1777727442000,-500.0,0.00032876,2]
[421465678,1777727442000,-500.0,0.00032876,2]
[421465685,1777727442000,-500.0,0.00032876,2]
[421465684,1777727442000,-500.0,0.00032876,2]
[421465687,1777727442000,-500.0,0.00032876,2]
[421465681,1777727442000,-500.0,0.00032876,2]
[421465683,1777727442000,-500.0,0.00032876,2]
[421465679,1777727442000,-508.21796885,0.00032876,2]
[421465682,1777727442000,-353.24871665,0.00032876,2]
[421465689,1777727442000,-500.0,0.00032876,2]
[421465697,1777727442000,-500.0,0.00032876,2]
[421465699,1777727442000,-500.0,0.00032876,2]
[421465677,1777727442000,-500.0,0.00032876,2]
[421465703,1777727442000,-500.0,0.00032876,2]
[421465709,1777727442000,-500.0,0.00032876,2]
[421465706,1777727442000,-792.95,0.00032876,2]
[421465707,1777727442000,-500.0,0.00032876,2]
[421465698,1777727442000,-509.08748165,0.00032876,2]
[421465693,1777727442000,-500.0,0.00032876,2]
[421465696,1777727442000,-500.0,0.00032876,2]
[421465694,1777727442000,-500.0,0.00032876,2]
[421465691,1777727442000,-500.0,0.00032876,2]
[421465695,1777727442000,-820.18,0.00032876,2]
[421465690,1777727442000,-500.0,0.00032876,2]
[421465688,1777727442000,-500.0,0.00032876,2]
[421465700,1777727442000,-500.0,0.00032876,2]
[421465692,1777727442000,-500.0,0.00032876,2]
[421465780,1777727443000,-525.36,0.00032876,2]
[421465776,1777727443000,-500.0,0.00032876,2]
[421465788,1777727443000,-500.0,0.00032876,2]
[421465777,1777727443000,-500.0,0.00032876,2]
[421465771,1777727443000,-506.48,0.00032876,2]
[421465763,1777727443000,-500.0,0.00032876,2]
[421465769,1777727443000,-500.0,0.00032876,2]
[421465768,1777727443000,-500.0,0.00032876,2]
[421465767,1777727443000,-500.0,0.00032876,2]
[421465770,1777727443000,-787.98,0.00032876,2]
[421465773,1777727443000,-500.0,0.00032876,2]
[421465787,1777727443000,-500.0,0.00032876,2]
[421465772,1777727443000,-500.0,0.00032876,2]
[421465778,1777727443000,-500.0,0.00032876,2]
[421465792,1777727443000,-500.0,0.00032876,2]
[421465781,1777727443000,-714.82,0.00032876,2]
[421465786,1777727443000,-1189.82,0.00032876,2]
[421465784,1777727443000,-515.41,0.00032876,2]
[421465783,1777727443000,-500.0,0.00032876,2]
[421465785,1777727443000,-500.0,0.00032876,2]
[421465782,1777727443000,-500.0,0.00032876,2]
[421465790,1777727443000,-500.0,0.00032876,2]
[421465797,1777727443000,-500.0,0.00032876,2]
[421465798,1777727443000,-500.0,0.00032876,2]
[421465801,1777727443000,-849.34,0.00032876,2]
[421465789,1777727443000,-672.83,0.00032876,2]
[421465799,1777727443000,-500.0,0.00032876,2]
[421465791,1777727443000,-500.0,0.00032876,2]
[421465779,1777727443000,-500.0,0.00032876,2]
[421465765,1777727443000,-500.0,0.00032876,2]
[421465736,1777727443000,-640.16,0.00032876,2]
[421465775,1777727443000,-500.0,0.00032876,2]
[421465794,1777727443000,-465.827144,0.00032876,2]
[421465738,1777727443000,-500.04403621,0.00032876,2]
[421465749,1777727443000,-500.0,0.00032876,2]
[421465748,1777727443000,-500.0,0.00032876,2]
[421465737,1777727443000,-500.0,0.00032876,2]
[421465742,1777727443000,-500.0,0.00032876,2]
[421465740,1777727443000,-500.0,0.00032876,2]
[421465743,1777727443000,-500.0,0.00032876,2]
[421465744,1777727443000,-566.4,0.00032876,2]
[421465739,1777727443000,-500.0,0.00032876,2]
[421465747,1777727443000,-298.72826575,0.00032876,2]
[421465745,1777727443000,-500.0,0.00032876,2]
[421465741,1777727443000,-500.0,0.00032876,2]
[421465746,1777727443000,-500.0,0.00032876,2]
[421465750,1777727443000,-500.0,0.00032876,2]
[421465752,1777727443000,-197.61743818,0.00032876,2]
[421465753,1777727443000,-500.0,0.00032876,2]
[421465754,1777727443000,-500.0,0.00032876,2]
[421465751,1777727443000,-500.0,0.00032876,2]
[421465760,1777727443000,-633.56,0.00032876,2]
[421465759,1777727443000,-1205.37,0.00032876,2]
[421465761,1777727443000,-500.0,0.00032876,2]
[421465757,1777727443000,-500.0,0.00032876,2]
[421465756,1777727443000,-647.08,0.00032876,2]
[421465755,1777727443000,-500.0,0.00032876,2]
[421465762,1777727443000,-500.0,0.00032876,2]
[421465758,1777727443000,-500.0,0.00032876,2]
[421465764,1777727443000,-540.7,0.00032876,2]
[421465766,1777727443000,-500.0,0.00032876,2]
[421465774,1777727443000,-500.0,0.00032876,2]
[421465793,1777727443000,-500.0,0.00032876,2]
[421465806,1777727443000,-500.0,0.00032876,2]
[421465800,1777727443000,-500.0,0.00032876,2]
[421465834,1777727443000,-500.0,0.00032876,2]
[421465837,1777727443000,-623.29,0.00032876,2]
[421465838,1777727443000,-500.0,0.00032876,2]
[421465831,1777727443000,-500.0,0.00032876,2]
[421465836,1777727443000,-500.0,0.00032876,2]
[421465841,1777727443000,-500.0,0.00032876,2]
[421465851,1777727443000,-836.76,0.00032876,2]
[421465840,1777727443000,-500.0,0.00032876,2]
[421465852,1777727443000,-500.0,0.00032876,2]
[421465844,1777727443000,-500.0,0.00032876,2]
[421465842,1777727443000,-500.0,0.00032876,2]
[421465850,1777727443000,-500.0,0.00032876,2]
[421465846,1777727443000,-509.43331691,0.00032876,2]
[421465845,1777727443000,-500.0,0.00032876,2]
[421465849,1777727443000,-500.0,0.00032876,2]
[421465843,1777727443000,-622.42,0.00032876,2]
[421465848,1777727443000,-500.0,0.00032876,2]
[421465802,1777727443000,-529.06152687,0.00032876,2]
[421465854,1777727443000,-565.3,0.00032876,2]
[421465857,1777727443000,-500.0,0.00032876,2]
[421465853,1777727443000,-500.0,0.00032876,2]
[421465861,1777727443000,-932.2,0.00032876,2]
[421465855,1777727443000,-500.0,0.00032876,2]
[421465859,1777727443000,-756.51,0.00032876,2]
[421465858,1777727443000,-500.0,0.00032876,2]
[421465863,1777727443000,-674.21,0.00032876,2]
[421465856,1777727443000,-1897.72,0.00032876,2]
[421465862,1777727443000,-500.0,0.00032876,2]
[421465860,1777727443000,-500.0,0.00032876,2]
[421465829,1777727443000,-500.0,0.00032876,2]
[421465839,1777727443000,-500.0,0.00032876,2]
[421465847,1777727443000,-500.0,0.00032876,2]
[421465830,1777727443000,-511.09,0.00032876,2]
[421465795,1777727443000,-189.51385618,0.00032876,2]
[421465832,1777727443000,-500.0,0.00032876,2]
[421465796,1777727443000,-500.0,0.00032876,2]
[421465805,1777727443000,-786.66,0.00032876,2]
[421465803,1777727443000,-500.0,0.00032876,2]
[421465804,1777727443000,-887.34,0.00032876,2]
[421465813,1777727443000,-500.0,0.00032876,2]
[421465808,1777727443000,-500.0,0.00032876,2]
[421465811,1777727443000,-602.66,0.00032876,2]
[421465807,1777727443000,-500.0,0.00032876,2]
[421465810,1777727443000,-500.0,0.00032876,2]
[421465809,1777727443000,-641.65,0.00032876,2]
[421465812,1777727443000,-638.11610377,0.00032876,2]
[421465815,1777727443000,-2644.55,0.00032876,2]
[421465814,1777727443000,-500.0,0.00032876,2]
[421465826,1777727443000,-871.07,0.00032876,2]
[421465828,1777727443000,-500.0,0.00032876,2]
[421465816,1777727443000,-638.99,0.00032876,2]
[421465835,1777727443000,-906.12,0.00032876,2]
[421465824,1777727443000,-630.26,0.00032876,2]
[421465833,1777727443000,-829.82,0.00032876,2]
[421465825,1777727443000,-500.0,0.00032876,2]
[421465819,1777727443000,-647.28,0.00032876,2]
[421465823,1777727443000,-500.0,0.00032876,2]
[421465822,1777727443000,-500.0,0.00032876,2]
[421465820,1777727443000,-646.86,0.00032876,2]
[421465821,1777727443000,-500.0,0.00032876,2]
[421465818,1777727443000,-500.0,0.00032876,2]
[421465827,1777727443000,-500.0,0.00032876,2]
[421465817,1777727443000,-500.0,0.00032876,2]
[421465883,1777727444000,-500.0,0.00032876,2]
[421465889,1777727444000,-1501.0,0.00032876,2]
[421465891,1777727444000,-500.0,0.00032876,2]
[421465892,1777727444000,-500.0,0.00032876,2]
[421465893,1777727444000,-500.0,0.00032876,2]
[421465888,1777727444000,-500.0,0.00032876,2]
[421465887,1777727444000,-500.0,0.00032876,2]
[421465894,1777727444000,-500.0,0.00032876,2]
[421465896,1777727444000,-500.0,0.00032876,2]
[421465897,1777727444000,-550.72551423,0.00032876,2]
[421465895,1777727444000,-500.0,0.00032876,2]
[421465899,1777727444000,-500.0,0.00032876,2]
[421465900,1777727444000,-500.0,0.00032876,2]
[421465898,1777727444000,-500.0,0.00032876,2]
[421465902,1777727444000,-500.0,0.00032876,2]
[421465884,1777727444000,-500.0,0.00032876,2]
[421465913,1777727444000,-5663.02,0.00032876,2]
[421465890,1777727444000,-603.9642167,0.00032876,2]
[421465881,1777727444000,-500.0,0.00032876,2]
[421465870,1777727444000,-205.41620314,0.00032876,2]
[421465885,1777727444000,-500.0,0.00032876,2]
[421465904,1777727444000,-788.8,0.00032876,2]
[421465864,1777727444000,-500.0,0.00032876,2]
[421465865,1777727444000,-662.45,0.00032876,2]
[421465867,1777727444000,-500.0,0.00032876,2]
[421465868,1777727444000,-500.0,0.00032876,2]
[421465872,1777727444000,-500.0,0.00032876,2]
[421465866,1777727444000,-570.32,0.00032876,2]
[421465871,1777727444000,-1112.93,0.00032876,2]
[421465882,1777727444000,-500.0,0.00032876,2]
[421465869,1777727444000,-500.0,0.00032876,2]
[421465874,1777727444000,-500.0,0.00032876,2]
[421465873,1777727444000,-500.0,0.00032876,2]
[421465876,1777727444000,-500.0,0.00032876,2]
[421465880,1777727444000,-500.0,0.00032876,2]
[421465877,1777727444000,-500.0,0.00032876,2]
[421465879,1777727444000,-500.0,0.00032876,2]
[421465878,1777727444000,-629.84,0.00032876,2]
[421465886,1777727444000,-500.0,0.00032876,2]
[421465875,1777727444000,-500.0,0.00032876,2]
[421465901,1777727444000,-2031.01,0.00032876,2]
[421465934,1777727444000,-500.0,0.00032876,2]
[421465903,1777727444000,-500.0,0.00032876,2]
[421465940,1777727444000,-500.0,0.00032876,2]
[421465939,1777727444000,-500.0,0.00032876,2]
[421465927,1777727444000,-500.0,0.00032876,2]
[421465931,1777727444000,-2796.84,0.00032876,2]
[421465933,1777727444000,-500.0,0.00032876,2]
[421465929,1777727444000,-500.0,0.00032876,2]
[421465930,1777727444000,-500.0,0.00032876,2]
[421465932,1777727444000,-452.76522277,0.00032876,2]
[421465936,1777727444000,-500.0,0.00032876,2]
[421465935,1777727444000,-500.0,0.00032876,2]
[421465937,1777727444000,-500.0,0.00032876,2]
[421465942,1777727444000,-500.0,0.00032876,2]
[421465941,1777727444000,-782.24,0.00032876,2]
[421465943,1777727444000,-598.82,0.00032876,2]
[421465944,1777727444000,-500.0,0.00032876,2]
[421465945,1777727444000,-541.06,0.00032876,2]
[421465912,1777727444000,-500.0,0.00032876,2]
[421465938,1777727444000,-612.67,0.00032876,2]
[421465928,1777727444000,-500.0,0.00032876,2]
[421465946,1777727444000,-245.56475983,0.00032876,2]
[421465924,1777727444000,-500.0,0.00032876,2]
[421465925,1777727444000,-500.0,0.00032876,2]
[421465908,1777727444000,-1237.13,0.00032876,2]
[421465905,1777727444000,-979.23,0.00032876,2]
[421465906,1777727444000,-500.0,0.00032876,2]
[421465907,1777727444000,-500.0,0.00032876,2]
[421465911,1777727444000,-287.57670577,0.00032876,2]
[421465909,1777727444000,-531.2,0.00032876,2]
[421465914,1777727444000,-500.0,0.00032876,2]
[421465923,1777727444000,-578.71,0.00032876,2]
[421465910,1777727444000,-500.0,0.00032876,2]
[421465921,1777727444000,-500.0,0.00032876,2]
[421465915,1777727444000,-919.73,0.00032876,2]
[421465916,1777727444000,-500.0,0.00032876,2]
[421465917,1777727444000,-500.0,0.00032876,2]
[421465918,1777727444000,-500.0,0.00032876,2]
[421465919,1777727444000,-500.0,0.00032876,2]
[421465922,1777727444000,-500.0,0.00032876,2]
[421465920,1777727444000,-500.0,0.00032876,2]
[421465926,1777727444000,-500.0,0.00032876,2]
[421465950,1777727445000,-479.70269713,0.00025727,2]
[421465948,1777727445000,-151.13,0.00024658,2]
[421465949,1777727445000,-547.6344299,0.00025727,2]
[421465951,1777727445000,-338.66287297,0.00025727,2]
[421465953,1777727445000,-334.58597552,0.000321,2]
[421465952,1777727445000,-201.51,0.00029868,2]
[421465956,1777727445000,-3302.55053612,0.000321,2]
[421465954,1777727445000,-422973.76851418,0.000321,2]
[421465957,1777727445000,-152416.17086171,0.000321,2]
[421465959,1777727445000,-19789.33607072,0.000321,2]
[421465960,1777727445000,-439.13846193,0.000321,2]
[421465955,1777727445000,-34587.93413307,0.000321,2]
[421465999,1777728346000,-135.34581854,0.00020838,2]
[421465998,1777728346000,-250.0,0.000143,2]
[421465997,1777728346000,-250.0,0.000143,2]
[421465996,1777728346000,-250.0,0.0001365,2]
[421465995,1777728346000,-284.0,0.00013,2]
[421465994,1777728346000,-250.0,0.00013,2]
[421466000,1777728425000,-250.0,0.00017579,2]
[421466001,1777728425000,-210.02323619,0.00019209,2]
[421466003,1777728425000,-151.36785972,0.0002,20]
[421466002,1777728425000,-250.0,0.00019337,2]
[421466006,1777728425000,-1200.0,0.00020845,2]
[421466004,1777728425000,-220.82999302,0.00020746,2]
[421466008,1777728425000,-300.0,0.00020845,2]
[421466009,1777728425000,-781.78825797,0.00020846,2]
[421466007,1777728425000,-195.0,0.00020845,2]
[421466005,1777728425000,-160.0,0.00020837,2]
[421466010,1777728448000,-388.02920174,0.00015,2]
[421466011,1777728591000,179.38567303,0.0002867,120]
[421466015,1777728620000,210.26,0.00028346,120]
[421466022,1777728631000,-500.0,0.00014999,2]
[421466019,1777728631000,-964.95933517,0.00014985,2]
[421466021,1777728631000,-182.05019603,0.00014998,2]
[421466024,1777728631000,-533.43176037,0.00014999,2]
[421466023,1777728631000,-500.0,0.00014999,2]
[421466020,1777728631000,-1017.94980397,0.00014998,2]
[421466026,1777728631000,-1378.17418521,0.00015,2]
[421466028,1777728631000,-938.55,0.00015,2]
[421466027,1777728631000,-2068.88113796,0.00015,2]
[421466029,1777728631000,-168126.55294105,0.00015,2]
[421466030,1777728631000,-445.16237278,0.00015,2]
[421466025,1777728631000,-14405.57052067,0.00015,2]
[421466032,1777728637000,-311.92523709,0.00014999,2]
[421466033,1777728637000,-513.34410977,0.00015,2]
[421466035,1777728638000,-2084.07857179,0.00015,2]
[421466034,1777728638000,-993.34152341,0.00015,2]
[421466037,1777728638000,-582.57802036,0.00015,2]
[421466036,1777728638000,-7906.75379404,0.00015,2]
[421466070,1777728640000,-4926.23470969,0.00015,2]
[421466068,1777728640000,-799.41080678,0.00015,2]
[421466069,1777728640000,-2852.19657638,0.00015,2]
[421466076,1777728645000,-156560.66972811,0.00015,2]
[421466072,1777728645000,-1189.45646289,0.00015,2]
[421466074,1777728645000,-1909.66153725,0.00015,2]
[421466075,1777728645000,-2296.12579698,0.00015,2]
[421466077,1777728645000,-960.0,0.00016498,2]
[421466087,1777728645000,-173.58103049,0.00022613,2]
[421466083,1777728645000,-3968.71,0.00020951,2]
[421466073,1777728645000,-5642.70196642,0.00015,2]
[421466078,1777728645000,-173.58103051,0.00020746,2]
[421466081,1777728645000,-846.48257995,0.00020846,2]
[421466086,1777728645000,-940.31,0.00022562,2]
[421466084,1777728645000,-1090.76,0.00020951,2]
[421466088,1777728645000,-173.58103049,0.00024481,2]
[421466082,1777728645000,-423.24128997,0.00020846,2]
[421466085,1777728645000,-3421.31,0.00022562,2]
[421466079,1777728645000,-911.17690193,0.00020846,2]
[421466124,1777728646000,-150.00000001,0.00029564,7]
[421466120,1777728646000,-150.0,0.00029564,7]
[421466118,1777728646000,-166.66,0.00029267,30]
[421466134,1777728646000,-5000.01,0.00030215,2]
[421466125,1777728646000,-157.56180726,0.00029564,7]
[421466117,1777728646000,-2000.0,0.00029181,2]
[421466127,1777728646000,-150.0,0.00029564,7]
[421466126,1777728646000,-150.0,0.00029564,7]
[421466131,1777728646000,-211.62064499,0.00030064,2]
[421466130,1777728646000,-166.66,0.00029859,30]
[421466129,1777728646000,-150.0,0.00029614,7]
[421466123,1777728646000,-150.0,0.00029564,7]
[421466133,1777728646000,-4073.4,0.00030215,2]
[421466137,1777728646000,-166.66,0.0003045,30]
[421466135,1777728646000,-362.67,0.00030217,120]
[421466132,1777728646000,-173.58103049,0.00030082,2]
[421466136,1777728646000,-1000.0,0.00030259,2]
[421466139,1777728646000,-1000.0,0.00030979,2]
[421466138,1777728646000,-150.0,0.00030659,7]
[421466141,1777728646000,-150.0,0.00031011,2]
[421466150,1777728646000,-730.612711,0.00031458,120]
[421466142,1777728646000,-166.66,0.00031041,30]
[421466149,1777728646000,-292.009898,0.00031458,14]
[421466144,1777728646000,-283.737866,0.0003136,14]
[421466119,1777728646000,-150.0,0.00029534,2]
[421466128,1777728646000,-502.29865957,0.00029564,7]
[421466122,1777728646000,-150.0,0.00029564,7]
[421466102,1777728646000,-402.0,0.00027136,2]
[421466116,1777728646000,-166.66,0.00028676,30]
[421466146,1777728646000,-276.570835,0.0003136,14]
[421466089,1777728646000,-179.38567304,0.00026287,2]
[421466090,1777728646000,-173.58103049,0.00026348,2]
[421466092,1777728646000,-151.0,0.00027136,2]
[421466094,1777728646000,-411.0,0.00027136,2]
[421466091,1777728646000,-14294.93791303,0.0002699,2]
[421466101,1777728646000,-152.0,0.00027136,2]
[421466093,1777728646000,-153.0,0.00027136,2]
[421466098,1777728646000,-150.0,0.00027136,2]
[421466096,1777728646000,-410.0,0.00027136,2]
[421466100,1777728646000,-151.0,0.00027136,2]
[421466099,1777728646000,-151.0,0.00027136,2]
[421466121,1777728646000,-150.0,0.00029564,7]
[421466095,1777728646000,-411.0,0.00027136,2]
[421466105,1777728646000,-152.0,0.00027137,2]
[421466104,1777728646000,-406.0,0.00027137,2]
[421466106,1777728646000,-412.0,0.00027137,2]
[421466107,1777728646000,-151.0,0.00027137,2]
[421466111,1777728646000,-306.0,0.00027167,2]
[421466109,1777728646000,-400.0,0.00027137,2]
[421466113,1777728646000,-166.66,0.00028085,30]
[421466108,1777728646000,-405.0,0.00027137,2]
[421466112,1777728646000,-179.38567304,0.00027393,14]
[421466110,1777728646000,-506.0,0.00027137,2]
[421466115,1777728646000,-506.0,0.00028492,3]
[421466114,1777728646000,-173.58103049,0.00028215,2]